[Event "Titled Tuesday Blitz April 25 Early 2023"]
[White "SashaKuzhilniy"]
[Black "Smiechu"]
[WhiteElo "2565"]
[BlackElo "2412"]
[Result "0-1"]
[Round "05"]
[TimeControl "180+2"]
[Date "2023.04.25"]
[WhiteClock "0:00:01"]
[BlackClock "0:00:18"]

1. b3 {[%clk 0:03:00]}  e5 {[%clk 0:02:59]} 2. Bb2 {[%clk 0:03:00]}  Nc6 {[%clk 0:02:59]} 3. c4 {[%clk 0:03:00]}  Nf6 {[%clk 0:02:59]} 4. e3 {[%clk 0:03:00]}  a5 {[%clk 0:02:58]} 5. Nc3 {[%clk 0:02:59]}  Bb4 {[%clk 0:02:56]} 6. a3 {[%clk 0:02:59]}  Bxc3 {[%clk 0:02:57]} 7. Bxc3 {[%clk 0:03:00]}  a4 {[%clk 0:02:57]} 8. b4 {[%clk 0:03:00]}  d6 {[%clk 0:02:57]} 9. d3 {[%clk 0:02:50]}  Be6 {[%clk 0:02:56]} 10. Be2 {[%clk 0:02:33]}  O-O {[%clk 0:02:55]} 11. Rc1 {[%clk 0:02:24]}  Ne7 {[%clk 0:02:54]} 12. Nf3 {[%clk 0:02:22]}  h6 {[%clk 0:02:51]} 13. O-O {[%clk 0:02:22]}  Ng6 {[%clk 0:02:50]} 14. Qd2 {[%clk 0:02:17]}  c6 {[%clk 0:02:45]} 15. Qb2 {[%clk 0:02:14]}  Bg4 {[%clk 0:02:38]} 16. h3 {[%clk 0:02:14]}  Bxf3 {[%clk 0:02:38]} 17. Bxf3 {[%clk 0:02:14]}  Re8 {[%clk 0:02:22]} 18. b5 {[%clk 0:02:13]}  Qd7 {[%clk 0:02:19]} 19. bxc6 {[%clk 0:02:11]}  bxc6 {[%clk 0:02:20]} 20. Rb1 {[%clk 0:02:11]}  Nh4 {[%clk 0:02:14]} 21. Be2 {[%clk 0:02:10]}  Qf5 {[%clk 0:02:10]} 22. Rfc1 {[%clk 0:01:37]}  Qg5 {[%clk 0:02:08]} 23. Bf1 {[%clk 0:01:37]}  Nh5 {[%clk 0:01:54]} 24. Qb7 {[%clk 0:01:23]}  Rac8 {[%clk 0:01:42]} 25. Qd7 {[%clk 0:01:17]}  Nf6 {[%clk 0:01:31]} 26. Qxd6 {[%clk 0:01:14]}  Nf5 {[%clk 0:01:28]} 27. Qc5 {[%clk 0:01:09]}  Nh4 {[%clk 0:01:16]} 28. Rb7 {[%clk 0:01:01]}  Re6 {[%clk 0:01:12]} 29. Rcb1 {[%clk 0:00:51]}  Nf3+ {[%clk 0:00:58]} 30. Kh1 {[%clk 0:00:49]}  Qh4 {[%clk 0:00:57]} 31. gxf3 {[%clk 0:00:41]}  Qxf2 {[%clk 0:00:50]} 32. Bg2 {[%clk 0:00:40]}  Nh5 {[%clk 0:00:49]} 33. Rb8 {[%clk 0:00:26]}  Rg6 {[%clk 0:00:36]} 34. Rxc8+ {[%clk 0:00:19]}  Kh7 {[%clk 0:00:35]} 35. Rb2 {[%clk 0:00:06]}  Ng3+ {[%clk 0:00:31]} 36. Kh2 {[%clk 0:00:07]}  Nf1+ {[%clk 0:00:31]} 37. Kh1 {[%clk 0:00:07]}  Ng3+ {[%clk 0:00:21]} 38. Kh2 {[%clk 0:00:07]}  Ne2 {[%clk 0:00:18]} 39. Rh8+ {[%clk 0:00:01]}  Kxh8 {[%clk 0:00:18]} 0-1


[Site "https://www.chess.com"]

[Event "Titled Tuesday Blitz April 25 Early 2023"]
[White "Alexikov, Alexander"]
[Black "Mordechai, Hanan"]
[WhiteFideId "14103958"]
[BlackFideId "2804166"]
[WhiteElo "2186"]
[BlackElo "2324"]
[Result "1-0"]
[Round "05"]
[TimeControl "180+2"]
[Date "2023.04.25"]
[WhiteClock "0:00:08"]
[BlackClock "0:00:01"]

1. e4 {[%clk 0:03:00]}  c6 {[%clk 0:02:33]} 2. d3 {[%clk 0:02:59]}  g6 {[%clk 0:02:31]} 3. f4 {[%clk 0:02:57]}  Bg7 {[%clk 0:02:32]} 4. Nf3 {[%clk 0:02:57]}  d6 {[%clk 0:02:32]} 5. c4 {[%clk 0:02:56]}  Nf6 {[%clk 0:02:32]} 6. Nc3 {[%clk 0:02:55]}  O-O {[%clk 0:02:32]} 7. g3 {[%clk 0:02:53]}  a6 {[%clk 0:02:33]} 8. Bg2 {[%clk 0:02:52]}  b5 {[%clk 0:02:33]} 9. O-O {[%clk 0:02:47]}  Nbd7 {[%clk 0:02:28]} 10. Kh1 {[%clk 0:02:46]}  Rb8 {[%clk 0:02:21]} 11. Qe2 {[%clk 0:02:36]}  a5 {[%clk 0:02:06]} 12. h3 {[%clk 0:02:18]}  b4 {[%clk 0:01:52]} 13. Nd1 {[%clk 0:02:12]}  Nc5 {[%clk 0:01:45]} 14. Kh2 {[%clk 0:02:07]}  d5 {[%clk 0:01:43]} 15. cxd5 {[%clk 0:02:04]}  cxd5 {[%clk 0:01:43]} 16. e5 {[%clk 0:02:05]}  Ne8 {[%clk 0:01:38]} 17. Be3 {[%clk 0:01:59]}  Ne6 {[%clk 0:01:29]} 18. d4 {[%clk 0:01:56]}  Qb6 {[%clk 0:01:27]} 19. Rf2 {[%clk 0:01:52]}  Ba6 {[%clk 0:01:27]} 20. Qe1 {[%clk 0:01:51]}  N8c7 {[%clk 0:01:15]} 21. Rc2 {[%clk 0:01:38]}  Nb5 {[%clk 0:01:14]} 22. Qf2 {[%clk 0:01:34]}  Rfc8 {[%clk 0:01:12]} 23. Rac1 {[%clk 0:01:33]}  Rxc2 {[%clk 0:01:11]} 24. Rxc2 {[%clk 0:01:32]}  Rc8 {[%clk 0:01:10]} 25. Rxc8+ {[%clk 0:01:31]}  Bxc8 {[%clk 0:01:11]} 26. Qc2 {[%clk 0:01:30]}  Qc7 {[%clk 0:01:05]} 27. Qxc7 {[%clk 0:01:25]}  Nexc7 {[%clk 0:01:05]} 28. Kg1 {[%clk 0:01:21]}  Bf5 {[%clk 0:01:00]} 29. Nd2 {[%clk 0:01:15]}  Bc2 {[%clk 0:00:58]} 30. Nf2 {[%clk 0:01:14]}  Bf8 {[%clk 0:00:53]} 31. Bf3 {[%clk 0:01:08]}  a4 {[%clk 0:00:50]} 32. Bd1 {[%clk 0:01:07]}  Bxd1 {[%clk 0:00:43]} 33. Nxd1 {[%clk 0:01:05]}  e6 {[%clk 0:00:44]} 34. Kf1 {[%clk 0:01:04]}  Be7 {[%clk 0:00:41]} 35. Ke2 {[%clk 0:01:03]}  Kf8 {[%clk 0:00:41]} 36. Nf2 {[%clk 0:01:01]}  Ke8 {[%clk 0:00:41]} 37. Nd3 {[%clk 0:00:59]}  Na6 {[%clk 0:00:39]} 38. Kd1 {[%clk 0:00:58]}  Kd7 {[%clk 0:00:39]} 39. Kc2 {[%clk 0:00:57]}  Kc6 {[%clk 0:00:39]} 40. g4 {[%clk 0:00:53]}  Bd8 {[%clk 0:00:39]} 41. Nf3 {[%clk 0:00:50]}  Bb6 {[%clk 0:00:39]} 42. f5 {[%clk 0:00:45]}  Nbc7 {[%clk 0:00:22]} 43. f6 {[%clk 0:00:43]}  h6 {[%clk 0:00:13]} 44. Bxh6 {[%clk 0:00:41]}  Kb5 {[%clk 0:00:13]} 45. Be3 {[%clk 0:00:39]}  Kc4 {[%clk 0:00:14]} 46. b3+ {[%clk 0:00:38]}  axb3+ {[%clk 0:00:14]} 47. axb3+ {[%clk 0:00:38]}  Kb5 {[%clk 0:00:15]} 48. Ng5 {[%clk 0:00:37]}  Kc6 {[%clk 0:00:14]} 49. Nxf7 {[%clk 0:00:37]}  Nb5 {[%clk 0:00:14]} 50. Ng5 {[%clk 0:00:34]}  Kd7 {[%clk 0:00:10]} 51. f7 {[%clk 0:00:31]}  Ke7 {[%clk 0:00:11]} 52. Nxe6 {[%clk 0:00:29]}  Kxf7 {[%clk 0:00:11]} 53. Nef4 {[%clk 0:00:28]}  Nxd4+ {[%clk 0:00:11]} 54. Bxd4 {[%clk 0:00:27]}  Bxd4 {[%clk 0:00:12]} 55. Nxd5 {[%clk 0:00:26]}  g5 {[%clk 0:00:09]} 56. N5xb4 {[%clk 0:00:25]}  Nxb4+ {[%clk 0:00:08]} 57. Nxb4 {[%clk 0:00:24]}  Bxe5 {[%clk 0:00:09]} 58. Nc6 {[%clk 0:00:24]}  Bc7 {[%clk 0:00:08]} 59. Kd3 {[%clk 0:00:24]}  Ke6 {[%clk 0:00:08]} 60. Ke4 {[%clk 0:00:24]}  Kd6 {[%clk 0:00:09]} 61. Nd4 {[%clk 0:00:23]}  Ba5 {[%clk 0:00:06]} 62. Kf5 {[%clk 0:00:22]}  Bd2 {[%clk 0:00:06]} 63. Nf3 {[%clk 0:00:22]}  Bc1 {[%clk 0:00:06]} 64. Nxg5 {[%clk 0:00:22]}  Ke7 {[%clk 0:00:06]} 65. h4 {[%clk 0:00:22]}  Kf8 {[%clk 0:00:07]} 66. h5 {[%clk 0:00:22]}  Kg7 {[%clk 0:00:08]} 67. Ne4 {[%clk 0:00:20]}  Ba3 {[%clk 0:00:08]} 68. g5 {[%clk 0:00:19]}  Kh7 {[%clk 0:00:08]} 69. h6 {[%clk 0:00:18]}  Kh8 {[%clk 0:00:08]} 70. Nf6 {[%clk 0:00:18]}  Bf8 {[%clk 0:00:07]} 71. Kg6 {[%clk 0:00:16]}  Bxh6 {[%clk 0:00:07]} 72. b4 {[%clk 0:00:14]}  Bf8 {[%clk 0:00:07]} 73. b5 {[%clk 0:00:14]}  Bc5 {[%clk 0:00:07]} 74. Nd7 {[%clk 0:00:13]}  Bd4 {[%clk 0:00:06]} 75. Kf7 {[%clk 0:00:12]}  Be3 {[%clk 0:00:04]} 76. g6 {[%clk 0:00:12]}  Bd4 {[%clk 0:00:04]} 77. b6 {[%clk 0:00:10]}  Be5 {[%clk 0:00:03]} 78. b7 {[%clk 0:00:08]}  Bg7 {[%clk 0:00:01]} 1-0


[Site "https://www.chess.com"]

[Event "Titled Tuesday Blitz April 25 Early 2023"]
[White "Ansh M Shah"]
[Black "Al-Tarboush, Ward"]
[WhiteFideId "25033379"]
[BlackFideId "7601450"]
[WhiteElo "2084"]
[BlackElo "2265"]
[Result "0-1"]
[Round "05"]
[TimeControl "180+2"]
[Date "2023.04.25"]
[WhiteClock "0:00:02"]
[BlackClock "0:00:58"]

1. d4 {[%clk 0:03:00]}  Nf6 {[%clk 0:02:59]} 2. c4 {[%clk 0:02:58]}  b6 {[%clk 0:02:54]} 3. Nc3 {[%clk 0:02:57]}  Bb7 {[%clk 0:02:54]} 4. h4 {[%clk 0:02:50]}  e6 {[%clk 0:02:52]} 5. f3 {[%clk 0:02:47]}  Bb4 {[%clk 0:02:52]} 6. e4 {[%clk 0:02:46]}  d6 {[%clk 0:02:50]} 7. Bd2 {[%clk 0:02:44]}  Nbd7 {[%clk 0:02:49]} 8. a3 {[%clk 0:02:44]}  Bxc3 {[%clk 0:02:49]} 9. Bxc3 {[%clk 0:02:45]}  Qe7 {[%clk 0:02:46]} 10. g4 {[%clk 0:02:44]}  O-O-O {[%clk 0:02:28]} 11. Qa4 {[%clk 0:02:42]}  Kb8 {[%clk 0:02:27]} 12. O-O-O {[%clk 0:02:41]}  h6 {[%clk 0:01:54]} 13. Bd3 {[%clk 0:02:30]}  c5 {[%clk 0:01:54]} 14. e5 {[%clk 0:02:22]}  Ne8 {[%clk 0:01:49]} 15. exd6 {[%clk 0:01:50]}  Qxd6 {[%clk 0:01:50]} 16. Ne2 {[%clk 0:01:18]}  Bxf3 {[%clk 0:01:50]} 17. Rhf1 {[%clk 0:01:18]}  Bxe2 {[%clk 0:01:50]} 18. Bxe2 {[%clk 0:01:19]}  Nef6 {[%clk 0:01:37]} 19. g5 {[%clk 0:00:55]}  hxg5 {[%clk 0:01:37]} 20. hxg5 {[%clk 0:00:56]}  Ne4 {[%clk 0:01:28]} 21. dxc5 {[%clk 0:00:49]}  Nxc3 {[%clk 0:01:07]} 22. Rxd6 {[%clk 0:00:18]}  Nxa4 {[%clk 0:01:05]} 23. Rfd1 {[%clk 0:00:16]}  Kc7 {[%clk 0:00:56]} 24. cxb6+ {[%clk 0:00:05]}  Ndxb6 {[%clk 0:00:57]} 25. Rxd8 {[%clk 0:00:03]}  Rxd8 {[%clk 0:00:57]} 26. Rxd8 {[%clk 0:00:02]}  Kxd8 {[%clk 0:00:58]} 0-1


[Site "https://www.chess.com"]

[Event "Titled Tuesday Blitz April 25 Early 2023"]
[White "MKlose11"]
[Black "Avalos Parra, Joao"]
[BlackFideId "3402541"]
[WhiteElo "2536"]
[BlackElo "2173"]
[Result "1-0"]
[Round "05"]
[TimeControl "180+2"]
[Date "2023.04.25"]
[WhiteClock "0:01:24"]
[BlackClock "0:01:21"]

1. e4 {[%clk 0:02:58]}  e5 {[%clk 0:02:59]} 2. Nf3 {[%clk 0:02:55]}  Nc6 {[%clk 0:03:00]} 3. d4 {[%clk 0:02:56]}  exd4 {[%clk 0:03:00]} 4. Bc4 {[%clk 0:02:54]}  Nf6 {[%clk 0:02:59]} 5. O-O {[%clk 0:02:54]}  d6 {[%clk 0:02:59]} 6. Nxd4 {[%clk 0:02:53]}  Be7 {[%clk 0:02:57]} 7. Nc3 {[%clk 0:02:52]}  O-O {[%clk 0:02:57]} 8. a4 {[%clk 0:02:46]}  a5 {[%clk 0:02:56]} 9. f3 {[%clk 0:02:42]}  Nxd4 {[%clk 0:02:43]} 10. Qxd4 {[%clk 0:02:41]}  Be6 {[%clk 0:02:44]} 11. Bxe6 {[%clk 0:02:19]}  fxe6 {[%clk 0:02:45]} 12. e5 {[%clk 0:01:46]}  Nd7 {[%clk 0:02:08]} 13. exd6 {[%clk 0:01:40]}  Bxd6 {[%clk 0:01:50]} 14. Qc4 {[%clk 0:01:32]}  Kh8 {[%clk 0:01:24]} 15. Be3 {[%clk 0:01:26]}  Qh4 {[%clk 0:01:21]} 16. Qxh4 {[%clk 0:01:24]} 1-0


[Site "https://www.chess.com"]

[Event "Titled Tuesday Blitz April 25 Early 2023"]
[White "Sharapov, Evgeny"]
[Black "Manon-og, Ramon Jr."]
[WhiteFideId "14103133"]
[BlackFideId "5200776"]
[WhiteElo "2367"]
[BlackElo "2349"]
[Result "1-0"]
[Round "05"]
[TimeControl "180+2"]
[Date "2023.04.25"]
[WhiteClock "0:01:14"]
[BlackClock "0:00:01"]

1. e4 {[%clk 0:02:59]}  c5 {[%clk 0:02:59]} 2. Nf3 {[%clk 0:02:59]}  d6 {[%clk 0:03:00]} 3. d4 {[%clk 0:02:59]}  cxd4 {[%clk 0:03:01]} 4. Nxd4 {[%clk 0:03:00]}  Nf6 {[%clk 0:03:01]} 5. f3 {[%clk 0:02:59]}  e5 {[%clk 0:02:57]} 6. Nb3 {[%clk 0:02:59]}  Be7 {[%clk 0:02:58]} 7. c4 {[%clk 0:02:59]}  O-O {[%clk 0:02:59]} 8. Nc3 {[%clk 0:02:59]}  Be6 {[%clk 0:03:00]} 9. Be3 {[%clk 0:02:58]}  Nbd7 {[%clk 0:03:00]} 10. Be2 {[%clk 0:02:58]}  Rc8 {[%clk 0:03:00]} 11. Nd5 {[%clk 0:02:58]}  Bxd5 {[%clk 0:02:59]} 12. cxd5 {[%clk 0:02:58]}  a6 {[%clk 0:03:00]} 13. O-O {[%clk 0:02:58]}  b5 {[%clk 0:02:59]} 14. a4 {[%clk 0:02:56]}  b4 {[%clk 0:02:56]} 15. Bxa6 {[%clk 0:02:54]}  Ra8 {[%clk 0:02:51]} 16. Bb5 {[%clk 0:02:53]}  Nh5 {[%clk 0:02:47]} 17. Qd2 {[%clk 0:02:52]}  f5 {[%clk 0:02:36]} 18. exf5 {[%clk 0:02:52]}  h6 {[%clk 0:02:31]} 19. Qxb4 {[%clk 0:02:45]}  Rxf5 {[%clk 0:02:12]} 20. g4 {[%clk 0:02:41]}  Bg5 {[%clk 0:02:12]} 21. Bf2 {[%clk 0:02:26]}  Rf4 {[%clk 0:02:11]} 22. Qxd6 {[%clk 0:02:19]}  Nhf6 {[%clk 0:02:07]} 23. h4 {[%clk 0:02:06]}  Rxf3 {[%clk 0:01:52]} 24. hxg5 {[%clk 0:02:06]}  hxg5 {[%clk 0:01:53]} 25. Nc5 {[%clk 0:02:01]}  Nxc5 {[%clk 0:01:13]} 26. Qxd8+ {[%clk 0:01:59]}  Rxd8 {[%clk 0:01:14]} 27. Bxc5 {[%clk 0:01:59]}  Rg3+ {[%clk 0:01:13]} 28. Kh2 {[%clk 0:01:51]}  Rb3 {[%clk 0:01:12]} 29. d6 {[%clk 0:01:43]}  Nxg4+ {[%clk 0:01:11]} 30. Kg2 {[%clk 0:01:40]}  Rxb2+ {[%clk 0:00:56]} 31. Kg3 {[%clk 0:01:39]}  Nf6 {[%clk 0:00:53]} 32. Rxf6 {[%clk 0:01:34]}  gxf6 {[%clk 0:00:54]} 33. d7 {[%clk 0:01:28]}  Kg7 {[%clk 0:00:47]} 34. Be7 {[%clk 0:01:23]}  Rb3+ {[%clk 0:00:40]} 35. Kg4 {[%clk 0:01:21]}  Rh8 {[%clk 0:00:35]} 36. d8=Q {[%clk 0:01:19]}  Rxd8 {[%clk 0:00:07]} 37. Bxd8 {[%clk 0:01:18]}  Kg6 {[%clk 0:00:05]} 38. Be8+ {[%clk 0:01:17]}  Kg7 {[%clk 0:00:04]} 39. Rf1 {[%clk 0:01:14]}  Rb4+ {[%clk 0:00:01]} 40. Kf5 {[%clk 0:01:14]} 1-0


[Site "https://www.chess.com"]

[Event "Titled Tuesday Blitz April 25 Early 2023"]
[White "Prudnykova, Olga"]
[Black "Reprintsev, Alexander"]
[WhiteFideId "14121093"]
[BlackFideId "14100541"]
[WhiteElo "2113"]
[BlackElo "2211"]
[Result "0-1"]
[Round "05"]
[TimeControl "180+2"]
[Date "2023.04.25"]
[WhiteClock "0:00:15"]
[BlackClock "0:00:05"]

1. e4 {[%clk 0:03:00]}  d5 {[%clk 0:02:53]} 2. exd5 {[%clk 0:03:00]}  Qxd5 {[%clk 0:02:50]} 3. Nc3 {[%clk 0:03:00]}  Qa5 {[%clk 0:02:50]} 4. Bc4 {[%clk 0:02:58]}  Nf6 {[%clk 0:02:49]} 5. Nge2 {[%clk 0:02:57]}  Bf5 {[%clk 0:02:43]} 6. O-O {[%clk 0:02:56]}  Nc6 {[%clk 0:02:42]} 7. d3 {[%clk 0:02:56]}  e6 {[%clk 0:02:41]} 8. Bd2 {[%clk 0:02:56]}  Qc5 {[%clk 0:02:35]} 9. Ng3 {[%clk 0:02:54]}  Bg6 {[%clk 0:02:34]} 10. Be3 {[%clk 0:02:50]}  Qd6 {[%clk 0:02:32]} 11. Bb3 {[%clk 0:02:43]}  a6 {[%clk 0:02:30]} 12. Nce2 {[%clk 0:02:28]}  h5 {[%clk 0:02:25]} 13. Nf4 {[%clk 0:02:23]}  Ne7 {[%clk 0:02:10]} 14. Nxg6 {[%clk 0:02:22]}  Nxg6 {[%clk 0:02:10]} 15. Ne4 {[%clk 0:02:20]}  Qc6 {[%clk 0:02:06]} 16. Qf3 {[%clk 0:02:12]}  O-O-O {[%clk 0:02:05]} 17. Ng5 {[%clk 0:02:00]}  Qxf3 {[%clk 0:02:03]} 18. Nxf3 {[%clk 0:02:00]}  Nd5 {[%clk 0:02:00]} 19. Bd2 {[%clk 0:01:59]}  Be7 {[%clk 0:02:00]} 20. c3 {[%clk 0:01:57]}  c5 {[%clk 0:01:58]} 21. Rad1 {[%clk 0:01:55]}  Bf6 {[%clk 0:01:58]} 22. Bc1 {[%clk 0:01:52]}  Rd7 {[%clk 0:01:56]} 23. d4 {[%clk 0:01:50]}  cxd4 {[%clk 0:01:55]} 24. Nxd4 {[%clk 0:01:50]}  Rhd8 {[%clk 0:01:54]} 25. Nf3 {[%clk 0:01:48]}  Ndf4 {[%clk 0:01:52]} 26. Rxd7 {[%clk 0:01:46]}  Ne2+ {[%clk 0:01:49]} 27. Kh1 {[%clk 0:01:46]}  Rxd7 {[%clk 0:01:49]} 28. Be3 {[%clk 0:01:44]}  Nef4 {[%clk 0:01:46]} 29. g3 {[%clk 0:01:43]}  Nd3 {[%clk 0:01:45]} 30. Rb1 {[%clk 0:01:37]}  Ne7 {[%clk 0:01:37]} 31. Kg2 {[%clk 0:01:37]}  Nf5 {[%clk 0:01:36]} 32. Bg5 {[%clk 0:01:21]}  Bxg5 {[%clk 0:01:32]} 33. Nxg5 {[%clk 0:01:21]}  Kc7 {[%clk 0:01:32]} 34. Bc2 {[%clk 0:01:19]}  Nc5 {[%clk 0:01:13]} 35. Rd1 {[%clk 0:01:16]}  Rxd1 {[%clk 0:01:10]} 36. Bxd1 {[%clk 0:01:16]}  f6 {[%clk 0:01:07]} 37. Nf3 {[%clk 0:01:13]}  Nd3 {[%clk 0:01:07]} 38. b3 {[%clk 0:01:10]}  g5 {[%clk 0:00:52]} 39. Kf1 {[%clk 0:01:08]}  g4 {[%clk 0:00:49]} 40. Nd2 {[%clk 0:01:08]}  Kd6 {[%clk 0:00:45]} 41. Bc2 {[%clk 0:01:03]}  Nc1 {[%clk 0:00:35]} 42. a4 {[%clk 0:01:00]}  Na2 {[%clk 0:00:35]} 43. Ne4+ {[%clk 0:00:58]}  Ke5 {[%clk 0:00:33]} 44. Bb1 {[%clk 0:00:56]}  Nc1 {[%clk 0:00:32]} 45. Nc5 {[%clk 0:00:50]}  b6 {[%clk 0:00:28]} 46. Nd7+ {[%clk 0:00:50]}  Kd6 {[%clk 0:00:27]} 47. Nxb6 {[%clk 0:00:50]}  Nxb3 {[%clk 0:00:27]} 48. Ke2 {[%clk 0:00:46]}  Ne7 {[%clk 0:00:25]} 49. Bc2 {[%clk 0:00:43]}  Na5 {[%clk 0:00:23]} 50. Kd3 {[%clk 0:00:41]}  f5 {[%clk 0:00:21]} 51. Nc4+ {[%clk 0:00:40]}  Nxc4 {[%clk 0:00:21]} 52. Kxc4 {[%clk 0:00:40]}  Kc6 {[%clk 0:00:20]} 53. Kd4 {[%clk 0:00:40]}  Kd6 {[%clk 0:00:19]} 54. Bd3 {[%clk 0:00:39]}  Nc6+ {[%clk 0:00:16]} 55. Ke3 {[%clk 0:00:37]}  a5 {[%clk 0:00:17]} 56. Bb5 {[%clk 0:00:36]}  Ne5 {[%clk 0:00:17]} 57. Be2 {[%clk 0:00:32]}  Kc5 {[%clk 0:00:14]} 58. Kf4 {[%clk 0:00:31]}  Nf7 {[%clk 0:00:14]} 59. Bf1 {[%clk 0:00:28]}  Kd5 {[%clk 0:00:13]} 60. Be2 {[%clk 0:00:26]}  Nd6 {[%clk 0:00:13]} 61. f3 {[%clk 0:00:21]}  Nc4 {[%clk 0:00:09]} 62. fxg4 {[%clk 0:00:20]}  hxg4 {[%clk 0:00:08]} 63. Bf1 {[%clk 0:00:18]}  Nb2 {[%clk 0:00:08]} 64. Bb5 {[%clk 0:00:18]}  Nd1 {[%clk 0:00:08]} 65. c4+ {[%clk 0:00:17]}  Kd6 {[%clk 0:00:08]} 66. Kg5 {[%clk 0:00:15]}  Nc3 {[%clk 0:00:06]} 67. Kf4 {[%clk 0:00:15]}  Na2 {[%clk 0:00:05]} 68. Ke3 {[%clk 0:00:15]}  Nb4 {[%clk 0:00:05]} 69. Kd4 {[%clk 0:00:15]}  e5+ {[%clk 0:00:06]} 70. Ke3 {[%clk 0:00:15]}  Nc6 {[%clk 0:00:05]} 71. Kf2 {[%clk 0:00:12]}  Ne7 {[%clk 0:00:05]} 72. Kg1 {[%clk 0:00:12]}  Kc5 {[%clk 0:00:06]} 73. Kg2 {[%clk 0:00:13]}  Ng6 {[%clk 0:00:06]} 74. h3 {[%clk 0:00:13]}  gxh3+ {[%clk 0:00:05]} 75. Kxh3 {[%clk 0:00:14]}  Kd4 {[%clk 0:00:06]} 76. g4 {[%clk 0:00:14]}  f4 {[%clk 0:00:05]} 77. g5 {[%clk 0:00:14]}  e4 {[%clk 0:00:05]} 78. Kg4 {[%clk 0:00:15]}  f3 {[%clk 0:00:05]} 79. Kg3 {[%clk 0:00:15]}  Ke3 {[%clk 0:00:05]} 80. Be8 {[%clk 0:00:15]}  f2 {[%clk 0:00:04]} 81. Kg2 {[%clk 0:00:15]}  Ke2 {[%clk 0:00:05]} 82. Bxg6 {[%clk 0:00:14]}  f1=Q+ {[%clk 0:00:05]} 83. Kg3 {[%clk 0:00:15]}  Qf3+ {[%clk 0:00:05]} 0-1


[Site "https://www.chess.com"]

[Event "Titled Tuesday Blitz April 25 Early 2023"]
[White "Vestby-Ellingsen, Mads"]
[Black "Chabris, Christopher"]
[WhiteFideId "1520857"]
[BlackFideId "2005263"]
[WhiteElo "2246"]
[BlackElo "2322"]
[Result "1-0"]
[Round "05"]
[TimeControl "180+2"]
[Date "2023.04.25"]
[WhiteClock "0:00:50"]
[BlackClock "0:00:25"]

1. d4 {[%clk 0:03:00]}  Nf6 {[%clk 0:02:59]} 2. Bg5 {[%clk 0:03:00]}  e6 {[%clk 0:02:58]} 3. e4 {[%clk 0:03:00]}  h6 {[%clk 0:02:58]} 4. Bxf6 {[%clk 0:02:59]}  Qxf6 {[%clk 0:02:58]} 5. c3 {[%clk 0:02:59]}  d6 {[%clk 0:02:54]} 6. Bd3 {[%clk 0:02:58]}  Nd7 {[%clk 0:02:53]} 7. Ne2 {[%clk 0:02:57]}  g6 {[%clk 0:02:50]} 8. O-O {[%clk 0:02:57]}  Bg7 {[%clk 0:02:50]} 9. f4 {[%clk 0:02:57]}  Qe7 {[%clk 0:02:48]} 10. Nd2 {[%clk 0:02:53]}  c5 {[%clk 0:02:21]} 11. e5 {[%clk 0:02:49]}  d5 {[%clk 0:02:10]} 12. Kh1 {[%clk 0:02:38]}  Nb8 {[%clk 0:01:55]} 13. a3 {[%clk 0:02:30]}  Nc6 {[%clk 0:01:44]} 14. b4 {[%clk 0:02:30]}  cxd4 {[%clk 0:01:44]} 15. cxd4 {[%clk 0:02:28]}  Bd7 {[%clk 0:01:42]} 16. Nb3 {[%clk 0:02:26]}  h5 {[%clk 0:01:25]} 17. Rc1 {[%clk 0:02:21]}  O-O {[%clk 0:01:20]} 18. b5 {[%clk 0:02:19]}  Nd8 {[%clk 0:01:09]} 19. Rc7 {[%clk 0:02:19]}  Rc8 {[%clk 0:01:08]} 20. Qc2 {[%clk 0:01:53]}  Rxc7 {[%clk 0:01:06]} 21. Qxc7 {[%clk 0:01:53]}  Qxa3 {[%clk 0:01:05]} 22. Rb1 {[%clk 0:01:04]}  Be8 {[%clk 0:00:39]} 23. h3 {[%clk 0:00:58]}  Qa2 {[%clk 0:00:32]} 24. Qc1 {[%clk 0:00:51]}  Qa3 {[%clk 0:00:25]} 25. Qxa3 {[%clk 0:00:50]} 1-0


[Site "https://www.chess.com"]

[Event "Titled Tuesday Blitz April 25 Early 2023"]
[White "Camacho Collados, Jose"]
[Black "Rodriguez Santiago, Jaime"]
[WhiteFideId "2265427"]
[BlackFideId "3100898"]
[WhiteElo "2198"]
[BlackElo "2025"]
[Result "1-0"]
[Round "05"]
[TimeControl "180+2"]
[Date "2023.04.25"]
[WhiteClock "0:02:06"]
[BlackClock "0:01:21"]

1. Nf3 {[%clk 0:03:00]}  Nf6 {[%clk 0:02:57]} 2. d4 {[%clk 0:03:01]}  e6 {[%clk 0:02:57]} 3. Bg5 {[%clk 0:03:01]}  d5 {[%clk 0:02:55]} 4. e3 {[%clk 0:02:59]}  c6 {[%clk 0:02:55]} 5. Bd3 {[%clk 0:02:58]}  Qa5+ {[%clk 0:02:51]} 6. Nbd2 {[%clk 0:02:56]}  Nbd7 {[%clk 0:02:51]} 7. O-O {[%clk 0:02:55]}  h6 {[%clk 0:02:48]} 8. Bh4 {[%clk 0:02:55]}  Bd6 {[%clk 0:02:45]} 9. e4 {[%clk 0:02:46]}  dxe4 {[%clk 0:02:41]} 10. Nxe4 {[%clk 0:02:47]}  Nxe4 {[%clk 0:02:40]} 11. Bxe4 {[%clk 0:02:48]}  O-O {[%clk 0:02:32]} 12. c4 {[%clk 0:02:48]}  Qh5 {[%clk 0:02:26]} 13. Bc2 {[%clk 0:02:40]}  b6 {[%clk 0:02:15]} 14. Qd3 {[%clk 0:02:39]}  g6 {[%clk 0:02:05]} 15. Rae1 {[%clk 0:02:32]}  Bb7 {[%clk 0:02:02]} 16. h3 {[%clk 0:02:11]}  Qa5 {[%clk 0:01:35]} 17. Rxe6 {[%clk 0:02:08]}  Bf4 {[%clk 0:01:21]} 18. Rxg6+ {[%clk 0:02:06]} 1-0


[Site "https://www.chess.com"]

[Event "Titled Tuesday Blitz April 25 Early 2023"]
[White "Postnikov, Daniil"]
[Black "Ardila, Oscar Humberto"]
[WhiteFideId "4166329"]
[BlackFideId "4404742"]
[WhiteElo "2261"]
[BlackElo "1918"]
[Result "1-0"]
[Round "05"]
[TimeControl "180+2"]
[Date "2023.04.25"]
[WhiteClock "0:01:18"]
[BlackClock "0:00:15"]

1. e4 {[%clk 0:02:59]}  e5 {[%clk 0:02:59]} 2. f4 {[%clk 0:02:59]}  d5 {[%clk 0:02:58]} 3. exd5 {[%clk 0:02:56]}  e4 {[%clk 0:02:57]} 4. Nc3 {[%clk 0:02:54]}  Nf6 {[%clk 0:02:57]} 5. d4 {[%clk 0:02:53]}  Bb4 {[%clk 0:02:54]} 6. a3 {[%clk 0:02:50]}  Bxc3+ {[%clk 0:02:50]} 7. bxc3 {[%clk 0:02:51]}  Qxd5 {[%clk 0:02:49]} 8. c4 {[%clk 0:02:49]}  Qd6 {[%clk 0:02:43]} 9. Ne2 {[%clk 0:02:49]}  O-O {[%clk 0:02:40]} 10. h3 {[%clk 0:02:43]}  Nc6 {[%clk 0:02:25]} 11. Be3 {[%clk 0:02:41]}  Nh5 {[%clk 0:02:16]} 12. g4 {[%clk 0:02:34]}  Nf6 {[%clk 0:02:15]} 13. Bg2 {[%clk 0:02:33]}  Re8 {[%clk 0:02:10]} 14. Nc3 {[%clk 0:02:29]}  h6 {[%clk 0:02:02]} 15. O-O {[%clk 0:02:26]}  Na5 {[%clk 0:01:53]} 16. Qe2 {[%clk 0:02:25]}  Be6 {[%clk 0:01:45]} 17. d5 {[%clk 0:02:24]}  Bd7 {[%clk 0:01:35]} 18. c5 {[%clk 0:02:21]}  Qf8 {[%clk 0:01:22]} 19. Rad1 {[%clk 0:02:18]}  Rad8 {[%clk 0:01:17]} 20. Bd4 {[%clk 0:02:13]}  e3 {[%clk 0:01:05]} 21. Bxf6 {[%clk 0:02:11]}  gxf6 {[%clk 0:01:04]} 22. Ne4 {[%clk 0:02:07]}  Rxe4 {[%clk 0:00:40]} 23. Bxe4 {[%clk 0:02:08]}  Qxc5 {[%clk 0:00:40]} 24. Rf3 {[%clk 0:01:58]}  Nc4 {[%clk 0:00:37]} 25. Bd3 {[%clk 0:01:56]}  Nb2 {[%clk 0:00:33]} 26. Re1 {[%clk 0:01:56]}  Re8 {[%clk 0:00:30]} 27. Kg2 {[%clk 0:01:43]}  Qxd5 {[%clk 0:00:28]} 28. Kg3 {[%clk 0:01:41]}  Bc6 {[%clk 0:00:25]} 29. Rxe3 {[%clk 0:01:27]}  Rxe3+ {[%clk 0:00:23]} 30. Qxe3 {[%clk 0:01:28]}  Qg2+ {[%clk 0:00:24]} 31. Kh4 {[%clk 0:01:28]}  Kg7 {[%clk 0:00:22]} 32. g5 {[%clk 0:01:25]}  hxg5+ {[%clk 0:00:16]} 33. fxg5 {[%clk 0:01:26]}  fxg5+ {[%clk 0:00:16]} 34. Qxg5+ {[%clk 0:01:27]}  Qxg5+ {[%clk 0:00:16]} 35. Kxg5 {[%clk 0:01:27]}  f6+ {[%clk 0:00:17]} 36. Kf4 {[%clk 0:01:20]}  Na4 {[%clk 0:00:16]} 37. Re7+ {[%clk 0:01:19]}  Kh6 {[%clk 0:00:15]} 38. Rh7# {[%clk 0:01:18]} 1-0


[Site "https://www.chess.com"]